[Event "Early-Titled-Tuesday-Blitz-October-17-2023"]
[Site "Chess.com"]
[Date "2023.10.17"]
[Round "3"]
[White "arminmusovic"]
[Black "lamomiajunior"]
[Result "0-1"]
[WhiteElo "2484"]
[BlackElo "2733"]
[TimeControl "180+1"]
[EndTime "8:30:49 PDT"]
[Termination "lamomiajunior won by checkmate"]

1. a3 {[%clk 0:03:00.2]} 1... d5 {[%clk 0:02:58.8]} 2. Nc3 {[%clk 0:02:58.6]}
2... Nf6 {[%clk 0:02:56.3]} 3. d3 {[%clk 0:02:58.9]} 3... h6 {[%clk 0:02:54.1]}
4. h3 {[%clk 0:02:58.6]} 4... e5 {[%clk 0:02:52.7]} 5. e4 {[%clk 0:02:58.5]}
5... Nc6 {[%clk 0:02:50.4]} 6. Bd2 {[%clk 0:02:56.5]} 6... Be7 {[%clk 0:02:50]}
7. g3 {[%clk 0:02:56]} 7... Be6 {[%clk 0:02:49.4]} 8. Bg2 {[%clk 0:02:56.7]}
8... Qd7 {[%clk 0:02:48.6]} 9. Nf3 {[%clk 0:02:57.2]} 9... O-O-O {[%clk
0:02:48.3]} 10. g4 {[%clk 0:02:55.4]} 10... d4 {[%clk 0:02:46.3]} 11. Ne2 {[%clk
0:02:54.9]} 11... Nh7 {[%clk 0:02:42.9]} 12. Ng3 {[%clk 0:02:55.2]} 12... Ng5
{[%clk 0:02:40.4]} 13. Bxg5 {[%clk 0:02:52.8]} 13... Bxg5 {[%clk 0:02:41.3]} 14.
b4 {[%clk 0:02:53.4]} 14... Bf4 {[%clk 0:02:40.1]} 15. Ne2 {[%clk 0:02:52.6]}
15... h5 {[%clk 0:02:13.2]} 16. b5 {[%clk 0:02:48.9]} 16... Ne7 {[%clk
0:02:13.3]} 17. g5 {[%clk 0:02:38.8]} 17... h4 {[%clk 0:02:07.3]} 18. Nfxd4
{[%clk 0:02:33.9]} 18... Bxg5 {[%clk 0:02:01.9]} 19. Nxe6 {[%clk 0:02:32.2]}
19... Qxe6 {[%clk 0:01:53.7]} 20. a4 {[%clk 0:02:24.6]} 20... Kb8 {[%clk
0:01:41.5]} 21. a5 {[%clk 0:02:24.4]} 21... Ng6 {[%clk 0:01:38]} 22. b6 {[%clk
0:02:13.7]} 22... cxb6 {[%clk 0:01:35.5]} 23. axb6 {[%clk 0:02:12.8]} 23... Qxb6
{[%clk 0:01:35]} 24. O-O {[%clk 0:02:02.3]} 24... Rc8 {[%clk 0:01:29]} 25. c4
{[%clk 0:01:55.5]} 25... Rhd8 {[%clk 0:01:28.2]} 26. Nc3 {[%clk 0:01:49.7]}
26... Nf4 {[%clk 0:00:51.8]} 27. Nd5 {[%clk 0:01:46.6]} 27... Qd4 {[%clk
0:00:52]} 28. Qg4 {[%clk 0:01:42]} 28... f6 {[%clk 0:00:46]} 29. Ra3 {[%clk
0:01:18.9]} 29... Nxd3 {[%clk 0:00:35.3]} 30. Qe2 {[%clk 0:01:02.7]} 30... Nf4
{[%clk 0:00:33.1]} 31. Qa2 {[%clk 0:01:00.4]} 31... Qxc4 {[%clk 0:00:25.7]} 32.
Ra1 {[%clk 0:00:41]} 32... Qxa2 {[%clk 0:00:25.6]} 33. R3xa2 {[%clk 0:00:41.9]}
33... a6 {[%clk 0:00:25.8]} 34. Rb1 {[%clk 0:00:38.8]} 34... Ka7 {[%clk
0:00:25.3]} 35. Rab2 {[%clk 0:00:36.3]} 35... Rb8 {[%clk 0:00:19.1]} 36. Nb4
{[%clk 0:00:30.7]} 36... Nd3 {[%clk 0:00:17.1]} 37. Nxd3 {[%clk 0:00:23.2]}
37... Rxd3 {[%clk 0:00:18]} 38. Bf1 {[%clk 0:00:24.1]} 38... Rd6 {[%clk
0:00:18.2]} 39. Ra2 {[%clk 0:00:21.8]} 39... Rb6 {[%clk 0:00:16.8]} 40. Rba1
{[%clk 0:00:21.9]} 40... Rd8 {[%clk 0:00:16.9]} 41. Kg2 {[%clk 0:00:21.7]} 41...
Bf4 {[%clk 0:00:16.8]} 42. Kf3 {[%clk 0:00:21.5]} 42... g6 {[%clk 0:00:17.4]}
43. Ra5 {[%clk 0:00:20.9]} 43... g5 {[%clk 0:00:17.6]} 44. R1a2 {[%clk
0:00:21.1]} 44... Rdd6 {[%clk 0:00:16.7]} 45. Ra1 {[%clk 0:00:21.1]} 45... Rb3+
{[%clk 0:00:17.1]} 46. Kg2 {[%clk 0:00:20.9]} 46... Kb8 {[%clk 0:00:15.7]} 47.
Bc4 {[%clk 0:00:21.1]} 47... Rc3 {[%clk 0:00:15.6]} 48. Bd5 {[%clk 0:00:21.7]}
48... Rb6 {[%clk 0:00:15.6]} 49. R5a4 {[%clk 0:00:19.8]} 49... Rb2 {[%clk
0:00:15.7]} 50. Rf1 {[%clk 0:00:17]} 50... Rg3+ {[%clk 0:00:15.7]} 51. Kh1
{[%clk 0:00:15.8]} 51... Rxh3+ {[%clk 0:00:16.1]} 52. Kg1 {[%clk 0:00:16.5]}
52... Rg3+ {[%clk 0:00:16.8]} 53. Kh1 {[%clk 0:00:17.2]} 53... Rc3 {[%clk
0:00:16.7]} 54. Be6 {[%clk 0:00:16]} 54... h3 {[%clk 0:00:15.9]} 55. Ra5 {[%clk
0:00:13.5]} 55... h2 {[%clk 0:00:16]} 56. Rd5 {[%clk 0:00:13.2]} 56... Rcc2
{[%clk 0:00:16.1]} 57. Rd8+ {[%clk 0:00:11.7]} 57... Ka7 {[%clk 0:00:16.4]} 58.
f3 {[%clk 0:00:06.1]} 58... Rf2 {[%clk 0:00:15.8]} 59. Rfd1 {[%clk 0:00:06.5]}
59... Rbd2 {[%clk 0:00:14]} 60. R8xd2 {[%clk 0:00:05.3]} 60... Bxd2 {[%clk
0:00:14.9]} 61. Rb1 {[%clk 0:00:06.2]} 61... b5 {[%clk 0:00:14.8]} 62. Ra1
{[%clk 0:00:05.5]} 62... Kb6 {[%clk 0:00:14.8]} 63. Rb1 {[%clk 0:00:04.3]} 63...
b4 {[%clk 0:00:15.1]} 64. Bb3 {[%clk 0:00:03.7]} 64... a5 {[%clk 0:00:15.6]} 65.
Ba4 {[%clk 0:00:02.5]} 65... Kc5 {[%clk 0:00:15.4]} 66. Bd7 {[%clk 0:00:02.9]}
66... Kd4 {[%clk 0:00:15.7]} 67. Bg4 {[%clk 0:00:03.4]} 67... a4 {[%clk
0:00:15.5]} 68. Ra1 {[%clk 0:00:02.5]} 68... a3 {[%clk 0:00:15.6]} 69. Rd1
{[%clk 0:00:03.3]} 69... b3 {[%clk 0:00:15.9]} 70. Rb1 {[%clk 0:00:04.1]} 70...
b2 {[%clk 0:00:16.3]} 71. Rd1 {[%clk 0:00:05]} 71... a2 {[%clk 0:00:16.8]} 72.
f4 {[%clk 0:00:05.9]} 72... gxf4 {[%clk 0:00:17.1]} 73. Be2 {[%clk 0:00:05.6]}
73... b1=Q {[%clk 0:00:16.6]} 74. Bf1 {[%clk 0:00:06.5]} 74... Rxf1+ {[%clk
0:00:15]} 75. Kg2 {[%clk 0:00:07.3]} 75... Rg1+ {[%clk 0:00:15]} 76. Kh3 {[%clk
0:00:08.2]} 76... Qxd1 {[%clk 0:00:14.7]} 77. Kh4 {[%clk 0:00:07.9]} 77... Qg4#
{[%clk 0:00:14.8]} 0-1

[Event "Early-Titled-Tuesday-Blitz-October-17-2023"]
[Site "Chess.com"]
[Date "2023.10.17"]
[Round "3"]
[White "Russian_berezka"]
[Black "guillembaches"]
[Result "1-0"]
[WhiteElo "2669"]
[BlackElo "2519"]
[TimeControl "180+1"]
[EndTime "8:30:50 PDT"]
[Termination "Russian_berezka won on time"]

1. d4 {[%clk 0:03:00.9]} 1... d5 {[%clk 0:03:00.2]} 2. c4 {[%clk 0:03:01.4]}
2... Nc6 {[%clk 0:03:00.6]} 3. Nc3 {[%clk 0:02:58.9]} 3... Nf6 {[%clk
0:03:00.2]} 4. Nf3 {[%clk 0:02:55.4]} 4... dxc4 {[%clk 0:02:56.6]} 5. d5 {[%clk
0:02:30.5]} 5... Na5 {[%clk 0:02:55]} 6. e4 {[%clk 0:02:29]} 6... c6 {[%clk
0:02:45.1]} 7. Be3 {[%clk 0:01:47.2]} 7... e6 {[%clk 0:02:36.7]} 8. d6 {[%clk
0:01:40.9]} 8... e5 {[%clk 0:02:18.2]} 9. Nxe5 {[%clk 0:01:37.8]} 9... Bxd6
{[%clk 0:02:17.3]} 10. Nxc4 {[%clk 0:01:36.8]} 10... Nxc4 {[%clk 0:02:14.3]} 11.
Bxc4 {[%clk 0:01:37.7]} 11... O-O {[%clk 0:02:09.7]} 12. f3 {[%clk 0:01:24.1]}
12... Qc7 {[%clk 0:01:55.3]} 13. g3 {[%clk 0:01:13.2]} 13... b5 {[%clk
0:01:42.3]} 14. Bb3 {[%clk 0:01:11.9]} 14... b4 {[%clk 0:01:41.1]} 15. Ne2
{[%clk 0:01:05.5]} 15... Ba6 {[%clk 0:01:27.1]} 16. Qc2 {[%clk 0:01:03.5]} 16...
Rfd8 {[%clk 0:01:21.9]} 17. Rc1 {[%clk 0:01:01.6]} 17... Rac8 {[%clk 0:01:12.7]}
18. Bc4 {[%clk 0:01:00.6]} 18... Bb7 {[%clk 0:01:07]} 19. O-O {[%clk 0:00:49.3]}
19... c5 {[%clk 0:01:07.1]} 20. Rfd1 {[%clk 0:00:38.6]} 20... h5 {[%clk
0:01:04.3]} 21. Bg5 {[%clk 0:00:33]} 21... Be5 {[%clk 0:01:00.3]} 22. Rxd8+
{[%clk 0:00:26.9]} 22... Rxd8 {[%clk 0:00:59.6]} 23. Bb3 {[%clk 0:00:19.9]}
23... Rc8 {[%clk 0:00:51.5]} 24. Bc4 {[%clk 0:00:18.1]} 24... Rd8 {[%clk
0:00:51.1]} 25. Bb3 {[%clk 0:00:18.3]} 25... Rc8 {[%clk 0:00:51.4]} 26. Be3
{[%clk 0:00:16.8]} 26... Bd6 {[%clk 0:00:48.4]} 27. Bc4 {[%clk 0:00:11.4]} 27...
Qe7 {[%clk 0:00:47.8]} 28. Bf4 {[%clk 0:00:07.7]} 28... h4 {[%clk 0:00:46.6]}
29. Bxd6 {[%clk 0:00:06.6]} 29... Qxd6 {[%clk 0:00:47.5]} 30. Rd1 {[%clk
0:00:07.3]} 30... Qe7 {[%clk 0:00:46.1]} 31. Qd2 {[%clk 0:00:04.1]} 31... hxg3
{[%clk 0:00:43.4]} 32. hxg3 {[%clk 0:00:04.1]} 32... Kf8 {[%clk 0:00:40.9]} 33.
Qf4 {[%clk 0:00:03.4]} 33... Rd8 {[%clk 0:00:38.9]} 34. Rxd8+ {[%clk 0:00:02.7]}
34... Qxd8 {[%clk 0:00:38.6]} 35. Qe3 {[%clk 0:00:03.5]} 35... Qe7 {[%clk
0:00:37.7]} 36. Kg2 {[%clk 0:00:02.7]} 36... Nd7 {[%clk 0:00:37.3]} 37. Nf4
{[%clk 0:00:02.7]} 37... Nb6 {[%clk 0:00:36.1]} 38. Be2 {[%clk 0:00:02.2]} 38...
g6 {[%clk 0:00:35.4]} 39. b3 {[%clk 0:00:02.7]} 39... Kg7 {[%clk 0:00:35.4]} 40.
Nd3 {[%clk 0:00:03.3]} 40... Nd7 {[%clk 0:00:33.5]} 41. Nb2 {[%clk 0:00:03]}
41... f6 {[%clk 0:00:32.9]} 42. Nc4 {[%clk 0:00:03.5]} 42... Ne5 {[%clk
0:00:33.1]} 43. Nxe5 {[%clk 0:00:03.4]} 43... Qxe5 {[%clk 0:00:33.1]} 44. Qd2
{[%clk 0:00:04.3]} 44... Qe7 {[%clk 0:00:31.8]} 45. Bc4 {[%clk 0:00:04.3]} 45...
g5 {[%clk 0:00:31.3]} 46. Qd3 {[%clk 0:00:03.9]} 46... Bc8 {[%clk 0:00:30]} 47.
Qd5 {[%clk 0:00:03.5]} 47... Qf8 {[%clk 0:00:26.6]} 48. Qc6 {[%clk 0:00:03.3]}
48... Kh6 {[%clk 0:00:23.4]} 49. Qc7 {[%clk 0:00:03.3]} 49... g4 {[%clk
0:00:21.4]} 50. Qf4+ {[%clk 0:00:02]} 50... Kg7 {[%clk 0:00:21]} 51. fxg4 {[%clk
0:00:02.6]} 51... Qe7 {[%clk 0:00:21.1]} 52. Kf3 {[%clk 0:00:02]} 52... Qe5
{[%clk 0:00:21.3]} 53. Qxe5 {[%clk 0:00:02.1]} 53... fxe5 {[%clk 0:00:21.9]} 54.
Bd5 {[%clk 0:00:02.4]} 54... Kf6 {[%clk 0:00:22.2]} 55. Bc6 {[%clk 0:00:02.5]}
55... Kg5 {[%clk 0:00:22.2]} 56. Ke3 {[%clk 0:00:02.2]} 56... Bxg4 {[%clk
0:00:22.6]} 57. Kd3 {[%clk 0:00:02.5]} 57... Be6 {[%clk 0:00:22.7]} 58. Bd5
{[%clk 0:00:02.4]} 58... Kf6 {[%clk 0:00:17.4]} 59. Kc4 {[%clk 0:00:02.4]} 59...
Bd7 {[%clk 0:00:14.6]} 60. Kxc5 {[%clk 0:00:02.7]} 60... a5 {[%clk 0:00:15.1]}
61. Kb6 {[%clk 0:00:02.9]} 61... a4 {[%clk 0:00:14.7]} 62. bxa4 {[%clk
0:00:03.6]} 62... Bxa4 {[%clk 0:00:14.2]} 63. Ka5 {[%clk 0:00:04.2]} 63... Bc2
{[%clk 0:00:14.1]} 64. Kxb4 {[%clk 0:00:04.3]} 64... Kg5 {[%clk 0:00:14.7]} 65.
a4 {[%clk 0:00:03.9]} 65... Kg4 {[%clk 0:00:15.1]} 66. a5 {[%clk 0:00:04.4]}
66... Kxg3 {[%clk 0:00:15.6]} 67. a6 {[%clk 0:00:04.6]} 1-0

[Event "Early-Titled-Tuesday-Blitz-October-17-2023"]
[Site "Chess.com"]
[Date "2023.10.17"]
[Round "3"]
[White "GMSrinath"]
[Black "Lion-Al-Messi"]
[Result "0-1"]
[WhiteElo "2860"]
[BlackElo "2661"]
[TimeControl "180+1"]
[EndTime "8:31:12 PDT"]
[Termination "Lion-Al-Messi won by checkmate"]

1. Nf3 {[%clk 0:02:58.4]} 1... d5 {[%clk 0:03:00.1]} 2. e3 {[%clk 0:02:58.1]}
2... Nf6 {[%clk 0:03:00.3]} 3. c4 {[%clk 0:02:58.6]} 3... c6 {[%clk 0:03:00.5]}
4. Nc3 {[%clk 0:02:58.4]} 4... Nbd7 {[%clk 0:03:00]} 5. b3 {[%clk 0:02:58.5]}
5... e5 {[%clk 0:03:00]} 6. cxd5 {[%clk 0:02:53.8]} 6... cxd5 {[%clk 0:03:00.2]}
7. Bb2 {[%clk 0:02:54.5]} 7... Be7 {[%clk 0:03:00.5]} 8. Be2 {[%clk 0:02:51.8]}
8... a6 {[%clk 0:03:00.5]} 9. O-O {[%clk 0:02:51.1]} 9... O-O {[%clk 0:03:00.8]}
10. d4 {[%clk 0:02:45.6]} 10... e4 {[%clk 0:03:00.1]} 11. Ne5 {[%clk 0:02:46.2]}
11... Re8 {[%clk 0:02:57.6]} 12. Rc1 {[%clk 0:02:42]} 12... Bd6 {[%clk 0:02:57]}
13. Na4 {[%clk 0:02:37.4]} 13... Nxe5 {[%clk 0:02:52.7]} 14. dxe5 {[%clk
0:02:36.5]} 14... Bxe5 {[%clk 0:02:53.6]} 15. Bxe5 {[%clk 0:02:37.3]} 15... Rxe5
{[%clk 0:02:54.5]} 16. Qd4 {[%clk 0:02:38.1]} 16... Re8 {[%clk 0:02:52.2]} 17.
Rfd1 {[%clk 0:02:27.2]} 17... Be6 {[%clk 0:02:51.1]} 18. Qb4 {[%clk 0:02:17.8]}
18... b5 {[%clk 0:02:49.4]} 19. Nc5 {[%clk 0:02:16.4]} 19... Qd6 {[%clk
0:02:47.4]} 20. a4 {[%clk 0:02:10.5]} 20... bxa4 {[%clk 0:02:42.1]} 21. Qxa4
{[%clk 0:02:09.7]} 21... h5 {[%clk 0:02:29.2]} 22. h3 {[%clk 0:02:07.1]} 22...
Qe5 {[%clk 0:02:21.1]} 23. Nxe6 {[%clk 0:01:01.7]} 23... fxe6 {[%clk 0:02:14.8]}
24. Rc6 {[%clk 0:00:59.9]} 24... a5 {[%clk 0:02:12.2]} 25. Rdc1 {[%clk
0:00:56.3]} 25... Rf8 {[%clk 0:02:02.4]} 26. Rc7 {[%clk 0:00:55.5]} 26... Qf5
{[%clk 0:01:56.9]} 27. Qc6 {[%clk 0:00:51.4]} 27... Ne8 {[%clk 0:01:36.6]} 28.
Qxa8 {[%clk 0:00:47.5]} 28... Qxf2+ {[%clk 0:01:34.4]} 29. Kh2 {[%clk
0:00:42.7]} 29... Nxc7 {[%clk 0:01:30.9]} 30. Qxa5 {[%clk 0:00:41.4]} 30... Qxe2
{[%clk 0:01:11.9]} 31. Qxc7 {[%clk 0:00:26.6]} 31... Qxe3 {[%clk 0:01:11.8]} 32.
Qc6 {[%clk 0:00:26.9]} 32... Rf6 {[%clk 0:01:01]} 33. Qe8+ {[%clk 0:00:25.7]}
33... Kh7 {[%clk 0:00:55.6]} 34. Rc8 {[%clk 0:00:25.1]} 34... Qf4+ {[%clk
0:00:43.2]} 35. Kh1 {[%clk 0:00:24.7]} 35... Qf1+ {[%clk 0:00:37.3]} 36. Kh2
{[%clk 0:00:25]} 36... Qf4+ {[%clk 0:00:38.2]} 37. Kh1 {[%clk 0:00:25.3]} 37...
h4 {[%clk 0:00:23.5]} 38. Qh8+ {[%clk 0:00:16.2]} 38... Kg6 {[%clk 0:00:23.5]}
39. Qe8+ {[%clk 0:00:16.9]} 39... Kg5 {[%clk 0:00:15.7]} 40. Qe7 {[%clk
0:00:17]} 40... Qf1+ {[%clk 0:00:11.6]} 41. Kh2 {[%clk 0:00:17.6]} 41... Qf4+
{[%clk 0:00:11.3]} 42. Kh1 {[%clk 0:00:18.3]} 42... g6 {[%clk 0:00:10.7]} 43.
Rc6 {[%clk 0:00:04.6]} 43... Qf1+ {[%clk 0:00:09]} 44. Kh2 {[%clk 0:00:05.2]}
44... Qf4+ {[%clk 0:00:09.5]} 45. Kh1 {[%clk 0:00:05.8]} 45... Qe5 {[%clk
0:00:03.8]} 46. Rc8 {[%clk 0:00:04.4]} 46... e3 {[%clk 0:00:03.4]} 47. Qb4
{[%clk 0:00:04]} 47... e2 {[%clk 0:00:03.3]} 48. Qd2+ {[%clk 0:00:04.6]} 48...
Rf4 {[%clk 0:00:03.5]} 49. Rc1 {[%clk 0:00:04.1]} 49... Qe4 {[%clk 0:00:02.7]}
50. Re1 {[%clk 0:00:03.8]} 50... Kf5 {[%clk 0:00:02.4]} 51. Rxe2 {[%clk
0:00:03.2]} 51... Rf1+ {[%clk 0:00:02.4]} 52. Kh2 {[%clk 0:00:03.8]} 52... Qf4+
{[%clk 0:00:02.6]} 53. Qxf4+ {[%clk 0:00:04.2]} 53... Rxf4 {[%clk 0:00:03.5]}
54. Rb2 {[%clk 0:00:04.5]} 54... Rb4 {[%clk 0:00:02.8]} 55. Kg1 {[%clk
0:00:04.1]} 55... e5 {[%clk 0:00:01.2]} 56. Kf2 {[%clk 0:00:04.7]} 56... e4
{[%clk 0:00:01.2]} 57. Ke3 {[%clk 0:00:05.3]} 57... d4+ {[%clk 0:00:01.7]} 58.
Kd2 {[%clk 0:00:06.2]} 58... Ke5 {[%clk 0:00:02.3]} 59. Kc2 {[%clk 0:00:06.6]}
59... Kd5 {[%clk 0:00:01.5]} 60. Ra2 {[%clk 0:00:07]} 60... Rb5 {[%clk
0:00:01.7]} 61. Ra8 {[%clk 0:00:06.2]} 61... Rc5+ {[%clk 0:00:02.1]} 62. Kd2
{[%clk 0:00:06.8]} 62... e3+ {[%clk 0:00:02.5]} 63. Kd1 {[%clk 0:00:04.6]} 63...
Ke4 {[%clk 0:00:02.5]} 64. b4 {[%clk 0:00:03.5]} 64... Rc4 {[%clk 0:00:02.3]}
65. b5 {[%clk 0:00:03.8]} 65... Kd3 {[%clk 0:00:01.9]} 66. Ra3+ {[%clk
0:00:03.4]} 66... Ke4 {[%clk 0:00:02.3]} 67. Rb3 {[%clk 0:00:01.6]} 67... d3
{[%clk 0:00:02.7]} 68. b6 {[%clk 0:00:01.9]} 68... e2+ {[%clk 0:00:03.1]} 69.
Kd2 {[%clk 0:00:01.8]} 69... Rc2+ {[%clk 0:00:03]} 70. Ke1 {[%clk 0:00:02.4]}
70... Rc1+ {[%clk 0:00:03.8]} 71. Kf2 {[%clk 0:00:03.3]} 71... e1=Q# {[%clk
0:00:03.9]} 0-1

[Event "Early-Titled-Tuesday-Blitz-October-17-2023"]
[Site "Chess.com"]
[Date "2023.10.17"]
[Round "3"]
[White "Aash20"]
[Black "chessfatbear"]
[Result "1/2-1/2"]
[WhiteElo "2549"]
[BlackElo "2793"]
[TimeControl "180+1"]
[EndTime "8:31:19 PDT"]
[Termination "Game drawn by repetition"]

1. e4 {[%clk 0:02:55.3]} 1... e5 {[%clk 0:02:56.4]} 2. Nf3 {[%clk 0:02:54.8]}
2... Nf6 {[%clk 0:02:56.6]} 3. Nxe5 {[%clk 0:02:54.3]} 3... d6 {[%clk
0:02:56.7]} 4. Nf3 {[%clk 0:02:53.2]} 4... Nxe4 {[%clk 0:02:57.1]} 5. d4 {[%clk
0:02:48.9]} 5... d5 {[%clk 0:02:53.2]} 6. Bd3 {[%clk 0:02:48.2]} 6... Be7 {[%clk
0:02:51.3]} 7. O-O {[%clk 0:02:46.2]} 7... Nc6 {[%clk 0:02:51.7]} 8. c3 {[%clk
0:02:45.8]} 8... O-O {[%clk 0:02:50]} 9. Nbd2 {[%clk 0:02:44.1]} 9... Nd6 {[%clk
0:02:49.1]} 10. Re1 {[%clk 0:02:37]} 10... Bf5 {[%clk 0:02:49.1]} 11. Nf1 {[%clk
0:02:30.9]} 11... Bxd3 {[%clk 0:02:36.9]} 12. Qxd3 {[%clk 0:02:26.8]} 12... Qd7
{[%clk 0:02:18.5]} 13. Ng3 {[%clk 0:02:25.4]} 13... Rae8 {[%clk 0:02:18.1]} 14.
Bf4 {[%clk 0:02:22.5]} 14... f6 {[%clk 0:02:15]} 15. Bxd6 {[%clk 0:02:19.8]}
15... Bxd6 {[%clk 0:02:11.4]} 16. Rxe8 {[%clk 0:02:19.1]} 16... Rxe8 {[%clk
0:02:10.8]} 17. Re1 {[%clk 0:02:19.9]} 17... Rxe1+ {[%clk 0:02:07.9]} 18. Nxe1
{[%clk 0:02:20.8]} 18... a6 {[%clk 0:02:04.9]} 19. Qf5 {[%clk 0:02:15.7]} 19...
Qxf5 {[%clk 0:01:57.9]} 20. Nxf5 {[%clk 0:02:14.2]} 20... Bf8 {[%clk 0:01:56.6]}
21. Nd3 {[%clk 0:02:11.2]} 21... Ne7 {[%clk 0:01:48.7]} 22. Nxe7+ {[%clk
0:02:09.7]} 22... Bxe7 {[%clk 0:01:48.9]} 23. f4 {[%clk 0:02:09.4]} 23... Kf7
{[%clk 0:01:38.6]} 24. Kf2 {[%clk 0:02:08.5]} 24... Ke6 {[%clk 0:01:38.2]} 25.
g4 {[%clk 0:02:05.8]} 25... g6 {[%clk 0:01:36.1]} 26. Kf3 {[%clk 0:02:05.5]}
26... Bd6 {[%clk 0:01:36.4]} 27. h3 {[%clk 0:02:04.7]} 27... b6 {[%clk
0:01:35.3]} 28. Ne1 {[%clk 0:01:55.2]} 28... c5 {[%clk 0:01:30.9]} 29. Nc2
{[%clk 0:01:53.1]} 29... f5 {[%clk 0:01:24.8]} 30. Ne3 {[%clk 0:01:51]} 30...
cxd4 {[%clk 0:01:14.3]} 31. cxd4 {[%clk 0:01:45.5]} 31... Bc7 {[%clk 0:01:08.2]}
32. gxf5+ {[%clk 0:01:43.5]} 32... gxf5 {[%clk 0:01:08.1]} 33. Nd1 {[%clk
0:01:34.7]} 33... Bd8 {[%clk 0:01:02.6]} 34. Ke3 {[%clk 0:01:34.1]} 34... Bh4
{[%clk 0:00:51.6]} 35. Nc3 {[%clk 0:01:33.6]} 35... Kd6 {[%clk 0:00:45.5]} 36.
Ne2 {[%clk 0:01:30]} 36... Kc6 {[%clk 0:00:28.7]} 37. Ng1 {[%clk 0:01:27.4]}
37... Kd6 {[%clk 0:00:16.7]} 38. Nf3 {[%clk 0:01:27.1]} 38... Bf6 {[%clk
0:00:17.2]} 39. Kd3 {[%clk 0:01:25.2]} 39... Be7 {[%clk 0:00:12]} 40. Ne5 {[%clk
0:01:12.5]} 40... Ke6 {[%clk 0:00:12]} 41. Ke3 {[%clk 0:01:09.1]} 41... Bd6
{[%clk 0:00:11.9]} 42. Nf3 {[%clk 0:01:08.9]} 42... h6 {[%clk 0:00:09.8]} 43.
Ne1 {[%clk 0:01:03.8]} 43... Be7 {[%clk 0:00:08.7]} 44. Nd3 {[%clk 0:01:03.4]}
44... Bd6 {[%clk 0:00:08.2]} 45. b3 {[%clk 0:00:59.2]} 45... Ba3 {[%clk
0:00:06]} 46. Ne1 {[%clk 0:00:56.6]} 46... Bb4 {[%clk 0:00:05.4]} 47. Nf3 {[%clk
0:00:57.5]} 47... Bd6 {[%clk 0:00:05.7]} 48. h4 {[%clk 0:00:55.5]} 48... Be7
{[%clk 0:00:05.6]} 49. h5 {[%clk 0:00:55.9]} 49... Bd6 {[%clk 0:00:05.7]} 50.
Ne1 {[%clk 0:00:53.7]} 50... Be7 {[%clk 0:00:04.3]} 51. Nd3 {[%clk 0:00:54.1]}
51... Bd6 {[%clk 0:00:04.9]} 52. a4 {[%clk 0:00:53.3]} 52... a5 {[%clk
0:00:04.6]} 53. Ne1 {[%clk 0:00:49.9]} 53... Be7 {[%clk 0:00:05.1]} 54. Nf3
{[%clk 0:00:50.1]} 54... Bd6 {[%clk 0:00:05.7]} 55. Nh4 {[%clk 0:00:50.4]} 55...
Be7 {[%clk 0:00:05.3]} 56. Ng6 {[%clk 0:00:50.4]} 56... Bd6 {[%clk 0:00:05.9]}
57. Kf3 {[%clk 0:00:48.9]} 57... Bb4 {[%clk 0:00:05.4]} 58. Ne5 {[%clk
0:00:48.4]} 58... Bd6 {[%clk 0:00:05.5]} 59. Nd3 {[%clk 0:00:44.9]} 59... Be7
{[%clk 0:00:05.8]} 60. Ke3 {[%clk 0:00:44.3]} 60... Bd6 {[%clk 0:00:06.3]} 61.
Ne1 {[%clk 0:00:36]} 61... Be7 {[%clk 0:00:06.7]} 62. Nf3 {[%clk 0:00:35.1]}
62... Bd6 {[%clk 0:00:07.3]} 63. Ng1 {[%clk 0:00:35.1]} 63... Be7 {[%clk
0:00:07.7]} 64. Ne2 {[%clk 0:00:35.3]} 64... Bd6 {[%clk 0:00:08.3]} 65. Kd3
{[%clk 0:00:35.5]} 65... Be7 {[%clk 0:00:08.2]} 66. Kc3 {[%clk 0:00:35.1]} 66...
Bb4+ {[%clk 0:00:08.3]} 67. Kd3 {[%clk 0:00:34.9]} 67... Bd6 {[%clk 0:00:09.2]}
68. Ke3 {[%clk 0:00:35.4]} 68... Be7 {[%clk 0:00:09.7]} 69. Kf3 {[%clk
0:00:35.9]} 69... Bd6 {[%clk 0:00:10.3]} 70. Ke3 {[%clk 0:00:35]} 70... Be7
{[%clk 0:00:10.8]} 71. Ng1 {[%clk 0:00:35]} 71... Bd6 {[%clk 0:00:11.3]} 72. Nf3
{[%clk 0:00:35.2]} 72... Be7 {[%clk 0:00:11.9]} 73. Ne5 {[%clk 0:00:33.9]} 73...
Bd6 {[%clk 0:00:12.5]} 74. Nf3 {[%clk 0:00:33.5]} 74... Be7 {[%clk 0:00:12.9]}
75. Ne1 {[%clk 0:00:33.2]} 75... Bd6 {[%clk 0:00:13.5]} 76. Nd3 {[%clk
0:00:33.6]} 76... Be7 {[%clk 0:00:13.8]} 77. Ne5 {[%clk 0:00:33.9]} 77... Bd6
{[%clk 0:00:14.4]} 78. Ng6 {[%clk 0:00:34.1]} 78... Be7 {[%clk 0:00:14.8]} 79.
Kd3 {[%clk 0:00:29.7]} 79... Bd6 {[%clk 0:00:15.4]} 80. Kc3 {[%clk 0:00:29]}
80... Bb4+ {[%clk 0:00:15]} 81. Kc2 {[%clk 0:00:29.4]} 81... Bd6 {[%clk
0:00:15.9]} 82. Kb2 {[%clk 0:00:29.8]} 82... Be7 {[%clk 0:00:15.9]} 83. Kc3
{[%clk 0:00:29.7]} 83... Bd6 {[%clk 0:00:16.4]} 84. Kd3 {[%clk 0:00:30.1]} 84...
Be7 {[%clk 0:00:16.6]} 85. Ke3 {[%clk 0:00:29.8]} 85... Bd6 {[%clk 0:00:17.1]}
86. Nh4 {[%clk 0:00:29.3]} 86... Be7 {[%clk 0:00:17.6]} 87. Nf3 {[%clk
0:00:29.3]} 1/2-1/2